[Event "Masterklassen 2025"]
[Site "Uppsala, Sweden"]
[Date "2025.06.29"]
[Round "2.16"]
[White "Ostensson, Julia"]
[Black "Mashhadi, Peyman"]
[Result "0-1"]
[TimeControl "90 min for 40 move + 30 min with an increment of 30 sec starting move 1"]
[WhiteFideId "1747703"]
[BlackFideId "1768581"]
[WhiteElo "2005"]
[BlackElo "2132"]

1. e4 {[%clk 01:30:57]} {[%emt 00:00:02]} c6 {[%clk 01:29:44]} {[%emt
00:01:16]} 2. d4 {[%clk 01:31:04]} {[%emt 00:00:24]} d5 {[%clk 01:30:00]}
{[%emt 00:00:13]} 3. exd5 {[%clk 01:29:47]} {[%emt 00:01:49]} cxd5 {[%clk
01:30:14]} {[%emt 00:00:15]} 4. Bd3 {[%clk 01:30:14]} {[%emt 00:00:04]} Nf6
{[%clk 01:29:34]} {[%emt 00:01:09]} 5. Bf4 {[%clk 01:28:54]} {[%emt 00:01:51]}
Bg4 {[%clk 01:26:24]} {[%emt 00:03:39]} 6. Ne2 {[%clk 01:25:09]} {[%emt
00:04:15]} e6 {[%clk 01:24:33]} {[%emt 00:02:20]} 7. c3 {[%clk 01:24:55]}
{[%emt 00:00:45]} Bd6 {[%clk 01:19:39]} {[%emt 00:05:23]} 8. Bxd6 {[%clk
01:22:44]} {[%emt 00:02:42]} Qxd6 {[%clk 01:18:37]} {[%emt 00:01:31]} 9. Qb3
{[%clk 01:12:18]} {[%emt 00:10:57]} O-O {[%clk 01:14:13]} {[%emt 00:04:54]} 10.
Qxb7 {[%clk 00:58:54]} {[%emt 00:13:55]} Nc6 {[%clk 01:12:31]} {[%emt
00:02:10]} 11. Qa6 {[%clk 00:54:38]} {[%emt 00:04:47]} Rab8 {[%clk 01:09:35]}
{[%emt 00:03:26]} 12. b3 {[%clk 00:53:04]} {[%emt 00:02:04]} Qc7 {[%clk
01:03:13]} {[%emt 00:06:51]} 13. f3 {[%clk 00:47:06]} {[%emt 00:06:30]} e5
{[%clk 00:55:23]} {[%emt 00:08:19]} 14. fxg4 {[%clk 00:37:11]} {[%emt
00:10:25]} Nxg4 {[%clk 00:54:31]} {[%emt 00:01:21]} 15. Bf5 {[%clk 00:22:41]}
{[%emt 00:15:01]} Ne3 {[%clk 00:46:22]} {[%emt 00:08:38]} 16. Qd3 {[%clk
00:18:18]} {[%emt 00:04:54]} exd4 {[%clk 00:45:55]} {[%emt 00:00:57]} 17. Na3
{[%clk 00:04:56]} {[%emt 00:13:52]} Rfe8 {[%clk 00:22:53]} {[%emt 00:23:31]} 18.
Nc2 {[%clk 00:04:31]} {[%emt 00:00:57]} g6 {[%clk 00:20:10]} {[%emt 00:03:12]}
19. cxd4 {[%clk 00:03:39]} {[%emt 00:01:22]} Qa5+ {[%clk 00:17:15]} {[%emt
00:03:25]} 20. Kf2 {[%clk 00:01:43]} {[%emt 00:02:27]} Nxf5 {[%clk 00:16:57]}
{[%emt 00:00:46]} 21. Rhe1 {[%clk 00:01:19]} {[%emt 00:00:55]} Qb6 {[%clk
00:12:59]} {[%emt 00:04:28]} 22. Rad1 {[%clk 00:01:14]} {[%emt 00:00:36]} Rbc8
{[%clk 00:12:14]} {[%emt 00:01:14]} 23. a3 {[%clk 00:00:34]} {[%emt 00:01:10]}
Ne5 {[%clk 00:10:20]} {[%emt 00:02:24]} 24. Qd2 {[%clk 00:00:32]} {[%emt
00:00:32]} Ng4+ {[%clk 00:09:44]} {[%emt 00:01:05]} 25. Kg1 {[%clk 00:00:50]}
{[%emt 00:00:13]} Qxb3 {[%clk 00:09:45]} {[%emt 00:00:29]} 26. Nb4 {[%clk
00:00:58]} {[%emt 00:00:23]} Nge3 {[%clk 00:07:55]} {[%emt 00:02:19]} 27. Rb1
{[%clk 00:01:23]} {[%emt 00:00:06]} Qa4 {[%clk 00:07:23]} {[%emt 00:01:01]} 28.
Nf4 {[%clk 00:00:42]} {[%emt 00:01:11]} Qd7 {[%clk 00:06:58]} {[%emt 00:00:55]}
29. Re2 {[%clk 00:00:32]} {[%emt 00:00:40]} Qd6 {[%clk 00:06:04]} {[%emt
00:01:24]} 30. g3 {[%clk 00:00:38]} {[%emt 00:00:25]} a5 {[%clk 00:06:04]}
{[%emt 00:00:30]} 31. Nbd3 {[%clk 00:00:43]} {[%emt 00:00:24]} Qxa3 {[%clk
00:05:25]} {[%emt 00:01:10]} 32. Nc5 {[%clk 00:00:41]} {[%emt 00:00:32]} Nc4
{[%clk 00:04:44]} {[%emt 00:01:11]} 33. Qe1 {[%clk 00:00:35]} {[%emt 00:00:35]}
Rxe2 {[%clk 00:04:33]} {[%emt 00:00:41]} 34. Qxe2 {[%clk 00:00:49]} {[%emt
00:00:16]} Nxd4 {[%clk 00:04:31]} {[%emt 00:00:33]} 35. Qe7 {[%clk 00:00:35]}
{[%emt 00:00:43]} Qxc5 {[%clk 00:04:23]} {[%emt 00:00:38]} 0-1

[Event "Masterklassen 2025"]
[Site "Uppsala, Sweden"]
[Date "2025.06.30"]
[Round "3.1"]
[White "Cederstam, Carl"]
[Black "Malm, Simon"]
[Result "1-0"]
[TimeControl "90 min for 40 move + 30 min with an increment of 30 sec starting move 1"]
[WhiteTitle "FM"]
[WhiteFideId "1713329"]
[BlackFideId "1759825"]
[WhiteElo "2316"]
[BlackElo "2007"]

1. e4 {[%clk 01:30:20]} {[%emt 00:00:38]} c5 {[%clk 01:30:32]} {[%emt
00:00:29]} 2. Nf3 {[%clk 01:30:31]} {[%emt 00:00:19]} d6 {[%clk 01:30:56]}
{[%emt 00:00:07]} 3. d4 {[%clk 01:30:31]} {[%emt 00:00:29]} cxd4 {[%clk
01:31:19]} {[%emt 00:00:07]} 4. Nxd4 {[%clk 01:30:57]} {[%emt 00:00:03]} Nf6
{[%clk 01:31:42]} {[%emt 00:00:08]} 5. Nc3 {[%clk 01:31:22]} {[%emt 00:00:04]}
Nc6 {[%clk 01:32:07]} {[%emt 00:00:06]} 6. Bg5 {[%clk 01:31:03]} {[%emt
00:00:50]} e6 {[%clk 01:32:18]} {[%emt 00:00:18]} 7. Qd2 {[%clk 01:31:27]}
{[%emt 00:00:06]} a6 {[%clk 01:32:42]} {[%emt 00:00:07]} 8. O-O-O {[%clk
01:31:41]} {[%emt 00:00:15]} Bd7 {[%clk 01:33:05]} {[%emt 00:00:07]} 9. Kb1
{[%clk 01:31:19]} {[%emt 00:00:52]} Nxd4 {[%clk 01:31:35]} {[%emt 00:02:01]} 10.
Qxd4 {[%clk 01:31:11]} {[%emt 00:00:37]} Bc6 {[%clk 01:28:48]} {[%emt
00:03:17]} 11. f3 {[%clk 01:24:57]} {[%emt 00:06:43]} h6 {[%clk 01:20:30]}
{[%emt 00:08:48]} 12. Be3 {[%clk 01:25:22]} {[%emt 00:00:06]} d5 {[%clk
01:19:30]} {[%emt 00:01:30]} 13. e5 {[%clk 01:12:25]} {[%emt 00:13:26]} Nd7
{[%clk 01:19:42]} {[%emt 00:00:19]} 14. f4 {[%clk 01:12:47]} {[%emt 00:00:07]}
Bc5 {[%clk 01:14:41]} {[%emt 00:05:32]} 15. Qd2 {[%clk 01:13:14]} {[%emt
00:00:02]} Bxe3 {[%clk 01:13:57]} {[%emt 00:01:16]} 16. Qxe3 {[%clk 01:13:41]}
{[%emt 00:00:02]} g5 {[%clk 01:12:07]} {[%emt 00:02:20]} 17. f5 {[%clk
01:02:27]} {[%emt 00:11:44]} Qc7 {[%clk 01:09:11]} {[%emt 00:03:27]} 18. Re1
{[%clk 01:02:41]} {[%emt 00:00:15]} O-O-O {[%clk 01:08:42]} {[%emt 00:00:59]}
19. Bd3 {[%clk 01:01:16]} {[%emt 00:01:53]} d4 {[%clk 00:58:19]} {[%emt
00:10:53]} 20. Qxd4 {[%clk 01:01:41]} {[%emt 00:00:06]} Bxg2 {[%clk 00:58:36]}
{[%emt 00:00:13]} 21. Rhg1 {[%clk 01:01:55]} {[%emt 00:00:15]} Nc5 {[%clk
00:58:44]} {[%emt 00:00:23]} 22. Qg4 {[%clk 00:57:25]} {[%emt 00:04:58]} Bc6
{[%clk 00:41:46]} {[%emt 00:17:30]} 23. fxe6 {[%clk 00:45:26]} {[%emt
00:12:29]} fxe6 {[%clk 00:40:36]} {[%emt 00:01:40]} 24. Bc4 {[%clk 00:41:46]}
{[%emt 00:04:10]} Kb8 {[%clk 00:40:42]} {[%emt 00:00:24]} 25. Rgf1 {[%clk
00:30:20]} {[%emt 00:11:55]} b5 {[%clk 00:33:21]} {[%emt 00:07:52]} 26. Be2
{[%clk 00:11:28]} {[%emt 00:19:18]} Rhf8 {[%clk 00:31:21]} {[%emt 00:02:34]} 27.
a4 {[%clk 00:06:09]} {[%emt 00:05:49]} Qxe5 {[%clk 00:27:00]} {[%emt 00:04:51]}
28. axb5 {[%clk 00:05:58]} {[%emt 00:00:41]} Rxf1 {[%clk 00:24:34]} {[%emt
00:02:56]} 29. Rxf1 {[%clk 00:06:24]} {[%emt 00:00:04]} axb5 {[%clk 00:19:54]}
{[%emt 00:05:10]} 30. Bxb5 {[%clk 00:05:01]} {[%emt 00:01:52]} Ne4 {[%clk
00:17:37]} {[%emt 00:02:48]} 31. Bxc6 {[%clk 00:04:58]} {[%emt 00:00:33]} Nd2+
{[%clk 00:12:59]} {[%emt 00:05:09]} 32. Kc1 {[%clk 00:05:22]} {[%emt 00:00:05]}
Qa5 {[%clk 00:13:16]} {[%emt 00:00:13]} 33. Qg3+ {[%clk 00:03:51]} {[%emt
00:02:00]} e5 {[%clk 00:12:08]} {[%emt 00:01:38]} 34. Nd5 {[%clk 00:02:21]}
{[%emt 00:02:01]} Rxd5 {[%clk 00:05:45]} {[%emt 00:06:54]} 35. Rf8+ {[%clk
00:02:35]} {[%emt 00:00:15]} Rd8 {[%clk 00:05:52]} {[%emt 00:00:22]} 36. Rxd8+
{[%clk 00:03:01]} {[%emt 00:00:05]} Qxd8 {[%clk 00:06:15]} {[%emt 00:00:07]} 37.
Qxe5+ {[%clk 00:03:27]} {[%emt 00:00:04]} Ka7 {[%clk 00:03:17]} {[%emt
00:03:29]} 38. Qc5+ {[%clk 00:02:23]} {[%emt 00:01:32]} Qb6 {[%clk 00:00:40]}
{[%emt 00:03:09]} 39. Qe7+ {[%clk 00:02:47]} {[%emt 00:00:05]} Ka6 {[%emt
00:00:34]} 40. Qa3+ {[%clk 00:03:13]} {[%emt 00:00:03]} Qa5 {[%clk 00:00:57]}
{[%emt 00:00:10]} 41. Qxa5+ {[%clk 00:03:39]} {[%emt 00:00:05]} 1-0

[Event "Masterklassen 2025"]
[Site "Uppsala, Sweden"]
[Date "2025.06.30"]
[Round "3.2"]
[White "Odell-Johansson, Leo"]
[Black "Kingsley, Elias"]
[Result "1-0"]
[TimeControl "90 min for 40 move + 30 min with an increment of 30 sec starting move 1"]
[WhiteFideId "1722727"]
[BlackFideId "1775006"]
[WhiteElo "1991"]
[BlackElo "2072"]

1. c4 {[%clk 01:30:42]} {[%emt 00:00:16]} Nf6 {[%clk 01:26:44]} {[%emt
00:04:17]} 2. Nc3 {[%clk 01:31:09]} {[%emt 00:00:04]} e6 {[%clk 01:12:21]}
{[%emt 00:14:53]} 3. e4 {[%clk 01:31:33]} {[%emt 00:00:06]} d5 {[%clk
01:12:11]} {[%emt 00:00:40]} 4. e5 {[%clk 01:32:00]} {[%emt 00:00:03]} d4
{[%clk 01:12:10]} {[%emt 00:00:31]} 5. exf6 {[%clk 01:32:21]} {[%emt 00:00:09]}
dxc3 {[%clk 01:12:35]} {[%emt 00:00:05]} 6. bxc3 {[%clk 01:32:26]} {[%emt
00:00:25]} Qxf6 {[%clk 01:12:53]} {[%emt 00:00:12]} 7. d4 {[%clk 01:31:06]}
{[%emt 00:01:49]} h6 {[%clk 01:12:17]} {[%emt 00:01:06]} 8. Nf3 {[%clk
01:31:13]} {[%emt 00:00:23]} Be7 {[%clk 01:10:46]} {[%emt 00:02:01]} 9. Bd3
{[%clk 01:30:54]} {[%emt 00:00:49]} O-O {[%clk 01:10:22]} {[%emt 00:00:54]} 10.
Ne5 {[%clk 01:13:56]} {[%emt 00:17:28]} Qh4 {[%clk 00:56:51]} {[%emt 00:14:02]}
11. h3 {[%clk 00:33:13]} {[%emt 00:41:12]} Bd6 {[%clk 00:50:26]} {[%emt
00:06:55]} 12. Nf3 {[%clk 00:30:06]} {[%emt 00:03:37]} Qf6 {[%clk 00:46:17]}
{[%emt 00:04:38]} 13. O-O {[%clk 00:26:20]} {[%emt 00:04:17]} c5 {[%clk
00:44:35]} {[%emt 00:02:12]} 14. Qe2 {[%clk 00:21:15]} {[%emt 00:05:31]} Nc6
{[%clk 00:39:14]} {[%emt 00:05:55]} 15. Rd1 {[%clk 00:19:44]} {[%emt 00:02:00]}
Rd8 {[%clk 00:36:57]} {[%emt 00:02:47]} 16. Rb1 {[%clk 00:18:00]} {[%emt
00:02:14]} b6 {[%clk 00:30:41]} {[%emt 00:06:46]} 17. Nd2 {[%clk 00:09:19]}
{[%emt 00:09:11]} cxd4 {[%clk 00:18:16]} {[%emt 00:12:56]} 18. Ne4 {[%clk
00:09:32]} {[%emt 00:00:16]} Qe7 {[%clk 00:17:41]} {[%emt 00:01:06]} 19. Nxd6
{[%clk 00:09:47]} {[%emt 00:00:15]} Qxd6 {[%clk 00:17:27]} {[%emt 00:00:44]} 20.
cxd4 {[%clk 00:09:17]} {[%emt 00:01:00]} Ba6 {[%clk 00:13:48]} {[%emt
00:04:08]} 21. Bb2 {[%clk 00:07:36]} {[%emt 00:02:12]} Rac8 {[%clk 00:02:56]}
{[%emt 00:11:22]} 22. Qf3 {[%clk 00:06:35]} {[%emt 00:01:29]} Na5 {[%clk
00:01:56]} {[%emt 00:01:32]} 23. c5 {[%clk 00:06:13]} {[%emt 00:00:52]} bxc5
{[%clk 00:01:01]} {[%emt 00:01:25]} 24. dxc5 {[%clk 00:06:39]} {[%emt
00:00:03]} Qc6 {[%clk 00:00:50]} {[%emt 00:00:42]} 25. Qxc6 {[%clk 00:06:16]}
{[%emt 00:00:52]} Rxc6 {[%clk 00:01:18]} {[%emt 00:00:03]} 26. Bh7+ {[%clk
00:05:00]} {[%emt 00:01:46]} Kxh7 {[%clk 00:01:46]} {[%emt 00:00:02]} 27. Rxd8
{[%clk 00:05:20]} {[%emt 00:00:09]} Rxc5 {[%clk 00:02:05]} {[%emt 00:00:12]} 28.
Rc1 {[%clk 00:03:19]} {[%emt 00:02:30]} Rxc1+ {[%clk 00:01:19]} {[%emt
00:01:17]} 29. Bxc1 {[%clk 00:03:47]} {[%emt 00:00:02]} Bc4 {[%clk 00:01:34]}
{[%emt 00:00:15]} 30. Rd7 {[%clk 00:03:25]} {[%emt 00:00:52]} Bxa2 {[%clk
00:01:01]} {[%emt 00:01:03]} 31. Rxa7 {[%clk 00:03:30]} {[%emt 00:00:24]} Nb3
{[%clk 00:01:19]} {[%emt 00:00:13]} 32. Bb2 {[%clk 00:01:37]} {[%emt 00:02:23]}
Bb1 {[%clk 00:01:36]} {[%emt 00:00:13]} 33. Rxf7 {[%clk 00:01:39]} {[%emt
00:00:27]} Kg8 {[%clk 00:01:10]} {[%emt 00:00:56]} 34. Rxg7+ {[%clk 00:01:56]}
{[%emt 00:00:13]} Kf8 {[%clk 00:01:39]} {[%emt 00:00:01]} 35. Rg3 {[%clk
00:01:26]} {[%emt 00:01:00]} Nd2 {[%clk 00:02:00]} {[%emt 00:00:09]} 36. Bg7+
{[%clk 00:01:22]} {[%emt 00:00:34]} Kf7 {[%clk 00:02:24]} {[%emt 00:00:07]} 37.
Bxh6 {[%clk 00:01:44]} {[%emt 00:00:08]} Ne4 {[%clk 00:02:42]} {[%emt
00:00:11]} 38. Rb3 {[%clk 00:01:21]} {[%emt 00:00:52]} Bc2 {[%clk 00:03:05]}
{[%emt 00:00:09]} 39. Rb6 {[%clk 00:01:25]} {[%emt 00:00:26]} Kf6 {[%clk
00:03:13]} {[%emt 00:00:22]} 40. Be3 {[%clk 00:01:30]} {[%emt 00:00:24]} Ke5
{[%clk 00:03:24]} {[%emt 00:00:19]} 41. f3 {[%clk 00:00:43]} {[%emt 00:01:17]}
Nd6 {[%clk 00:03:36]} {[%emt 00:00:18]} 42. Bf4+ {[%clk 00:30:02]} {[%emt
00:01:11]} 1-0

[Event "Masterklassen 2025"]
[Site "Uppsala, Sweden"]
[Date "2025.06.30"]
[Round "3.3"]
[White "Crevatin, Leo"]
[Black "Hagevi, Vidar"]
[Result "1/2-1/2"]
[TimeControl "90 min for 40 move + 30 min with an increment of 30 sec starting move 1"]
[WhiteTitle "FM"]
[WhiteFideId "1726307"]
[BlackFideId "1767526"]
[WhiteElo "2248"]
[BlackElo "2139"]

1. d4 {[%clk 01:30:54]} {[%emt 00:00:03]} Nf6 {[%clk 01:30:52]} {[%emt
00:00:11]} 2. c4 {[%clk 01:31:18]} {[%emt 00:00:07]} e6 {[%clk 01:31:16]}
{[%emt 00:00:06]} 3. Nf3 {[%clk 01:31:32]} {[%emt 00:00:16]} d5 {[%clk
01:30:45]} {[%emt 00:01:01]} 4. g3 {[%clk 01:31:54]} {[%emt 00:00:08]} Be7
{[%clk 01:29:49]} {[%emt 00:01:26]} 5. Bg2 {[%clk 01:32:14]} {[%emt 00:00:10]}
O-O {[%clk 01:29:54]} {[%emt 00:00:24]} 6. Nc3 {[%clk 01:32:29]} {[%emt
00:00:15]} c5 {[%clk 01:22:53]} {[%emt 00:07:31]} 7. cxd5 {[%clk 01:31:18]}
{[%emt 00:01:42]} Nxd5 {[%clk 01:20:33]} {[%emt 00:02:50]} 8. O-O {[%clk
01:25:14]} {[%emt 00:06:33]} Nc6 {[%clk 01:11:31]} {[%emt 00:09:33]} 9. e4
{[%clk 01:18:23]} {[%emt 00:07:20]} Nb6 {[%clk 00:52:05]} {[%emt 00:19:57]} 10.
d5 {[%clk 01:10:21]} {[%emt 00:08:31]} exd5 {[%clk 00:49:29]} {[%emt 00:03:06]}
11. Nxd5 {[%clk 01:06:56]} {[%emt 00:03:55]} Be6 {[%clk 00:47:05]} {[%emt
00:02:52]} 12. Nxe7+ {[%clk 01:01:50]} {[%emt 00:05:37]} Qxe7 {[%clk 00:46:28]}
{[%emt 00:01:07]} 13. Bg5 {[%clk 00:56:32]} {[%emt 00:05:48]} f6 {[%clk
00:45:04]} {[%emt 00:01:53]} 14. Bd2 {[%clk 00:55:54]} {[%emt 00:01:09]} Rad8
{[%clk 00:43:09]} {[%emt 00:02:25]} 15. Qc1 {[%clk 00:55:22]} {[%emt 00:01:02]}
Bg4 {[%clk 00:34:12]} {[%emt 00:09:27]} 16. Re1 {[%clk 00:52:33]} {[%emt
00:03:20]} Bxf3 {[%clk 00:29:53]} {[%emt 00:04:48]} 17. Bxf3 {[%clk 00:52:55]}
{[%emt 00:00:07]} Nd7 {[%clk 00:29:26]} {[%emt 00:00:58]} 18. Bg2 {[%clk
00:51:12]} {[%emt 00:02:13]} Nde5 {[%clk 00:27:29]} {[%emt 00:02:26]} 19. Be3
{[%clk 00:39:49]} {[%emt 00:11:54]} Nd3 {[%clk 00:21:58]} {[%emt 00:06:00]} 20.
Qc4+ {[%clk 00:40:14]} {[%emt 00:00:06]} Kh8 {[%clk 00:21:46]} {[%emt
00:00:42]} 21. Re2 {[%clk 00:37:16]} {[%emt 00:03:28]} Nd4 {[%clk 00:18:57]}
{[%emt 00:03:18]} 22. Bxd4 {[%clk 00:32:23]} {[%emt 00:05:24]} Rxd4 {[%clk
00:19:18]} {[%emt 00:00:09]} 23. Qc3 {[%clk 00:31:22]} {[%emt 00:01:31]} Rfd8
{[%clk 00:18:32]} {[%emt 00:01:15]} 24. Re3 {[%clk 00:25:04]} {[%emt 00:06:49]}
b5 {[%clk 00:17:13]} {[%emt 00:01:49]} 25. b3 {[%clk 00:16:41]} {[%emt
00:08:54]} b4 {[%clk 00:13:23]} {[%emt 00:04:20]} 26. Qc2 {[%clk 00:16:21]}
{[%emt 00:00:49]} Ne5 {[%clk 00:13:12]} {[%emt 00:00:42]} 27. Re2 {[%clk
00:15:10]} {[%emt 00:01:40]} Rd3 {[%clk 00:11:38]} {[%emt 00:02:04]} 28. Qc1
{[%clk 00:11:10]} {[%emt 00:04:29]} Qd6 {[%clk 00:09:13]} {[%emt 00:02:56]} 29.
h3 {[%clk 00:06:43]} {[%emt 00:04:57]} Qd4 {[%clk 00:08:52]} {[%emt 00:00:49]}
30. Kh2 {[%clk 00:06:48]} {[%emt 00:00:27]} Rc3 {[%clk 00:07:23]} {[%emt
00:01:58]} 31. Qf1 {[%clk 00:06:44]} {[%emt 00:00:33]} Qd3 {[%clk 00:06:31]}
{[%emt 00:01:23]} 32. Rae1 {[%emt 00:05:05]} 1/2-1/2

[Event "Masterklassen 2025"]
[Site "Uppsala, Sweden"]
[Date "2025.06.30"]
[Round "3.4"]
[White "Jonsson, Jacob"]
[Black "Walinder, Lars"]
[Result "1-0"]
[TimeControl "90 min for 40 move + 30 min with an increment of 30 sec starting move 1"]
[BlackTitle "FM"]
[WhiteFideId "1726315"]
[BlackFideId "1707329"]
[WhiteElo "2112"]
[BlackElo "2181"]

1. d4 {[%clk 01:30:58]} {[%emt 00:00:02]} Nf6 {[%clk 01:30:42]} {[%emt
00:00:17]} 2. c4 {[%clk 01:31:24]} {[%emt 00:00:05]} e6 {[%clk 01:31:05]}
{[%emt 00:00:07]} 3. Bf4 {[%clk 01:31:50]} {[%emt 00:00:04]} Bb4+ {[%clk
01:30:50]} {[%emt 00:00:45]} 4. Nd2 {[%clk 01:32:14]} {[%emt 00:00:06]} c5
{[%clk 01:30:45]} {[%emt 00:00:35]} 5. dxc5 {[%clk 01:32:38]} {[%emt 00:00:06]}
Bxc5 {[%clk 01:30:54]} {[%emt 00:00:21]} 6. e3 {[%clk 01:33:02]} {[%emt
00:00:06]} O-O {[%clk 01:30:37]} {[%emt 00:00:47]} 7. Be2 {[%clk 01:33:23]}
{[%emt 00:00:09]} Be7 {[%clk 01:26:02]} {[%emt 00:05:05]} 8. Ngf3 {[%clk
01:27:33]} {[%emt 00:06:20]} d6 {[%clk 01:23:22]} {[%emt 00:03:09]} 9. h3
{[%clk 01:22:11]} {[%emt 00:05:52]} h6 {[%clk 01:21:40]} {[%emt 00:02:12]} 10.
Bh2 {[%clk 01:19:33]} {[%emt 00:03:07]} Nbd7 {[%clk 01:05:40]} {[%emt
00:16:31]} 11. O-O {[%clk 01:13:39]} {[%emt 00:06:24]} a5 {[%clk 00:51:59]}
{[%emt 00:14:11]} 12. Nd4 {[%clk 01:00:30]} {[%emt 00:13:38]} e5 {[%clk
00:47:28]} {[%emt 00:05:01]} 13. Nb5 {[%clk 00:59:21]} {[%emt 00:01:39]} Nc5
{[%clk 00:42:46]} {[%emt 00:05:13]} 14. Nb3 {[%clk 00:53:54]} {[%emt 00:05:56]}
Qb6 {[%clk 00:42:41]} {[%emt 00:00:35]} 15. Qc2 {[%clk 00:49:09]} {[%emt
00:05:15]} Be6 {[%clk 00:41:22]} {[%emt 00:01:49]} 16. Rfd1 {[%clk 00:44:06]}
{[%emt 00:05:33]} Rac8 {[%clk 00:34:22]} {[%emt 00:07:31]} 17. Qd2 {[%clk
00:41:10]} {[%emt 00:03:25]} a4 {[%clk 00:26:42]} {[%emt 00:08:11]} 18. Nxc5
{[%clk 00:39:40]} {[%emt 00:01:59]} Rxc5 {[%clk 00:25:39]} {[%emt 00:01:34]} 19.
b4 {[%clk 00:35:32]} {[%emt 00:04:38]} axb3 {[%clk 00:25:38]} {[%emt 00:00:31]}
20. axb3 {[%clk 00:35:55]} {[%emt 00:00:07]} Rd8 {[%clk 00:10:48]} {[%emt
00:15:19]} 21. Qa5 {[%clk 00:34:16]} {[%emt 00:02:09]} Qxa5 {[%clk 00:10:57]}
{[%emt 00:00:21]} 22. Rxa5 {[%clk 00:34:40]} {[%emt 00:00:06]} Ne4 {[%clk
00:04:20]} {[%emt 00:07:06]} 23. Ra7 {[%clk 00:29:13]} {[%emt 00:05:58]} Rd7
{[%clk 00:04:04]} {[%emt 00:00:46]} 24. Bf3 {[%clk 00:19:17]} {[%emt 00:10:26]}
Bf5 {[%clk 00:03:59]} {[%emt 00:00:36]} 25. Ra8+ {[%clk 00:13:44]} {[%emt
00:06:02]} Kh7 {[%clk 00:04:03]} {[%emt 00:00:26]} 26. Rb8 {[%clk 00:13:59]}
{[%emt 00:00:16]} Ng5 {[%clk 00:02:42]} {[%emt 00:01:50]} 27. Bg4 {[%clk
00:12:19]} {[%emt 00:02:10]} Bxg4 {[%clk 00:02:49]} {[%emt 00:00:24]} 28. hxg4
{[%clk 00:12:43]} {[%emt 00:00:06]} Ne4 {[%clk 00:01:33]} {[%emt 00:01:46]} 29.
f3 {[%clk 00:12:01]} {[%emt 00:01:11]} Nf6 {[%clk 00:01:45]} {[%emt 00:00:18]}
30. e4 {[%clk 00:12:14]} {[%emt 00:00:17]} Rc6 {[%clk 00:02:05]} {[%emt
00:00:10]} 31. Ra1 {[%clk 00:12:01]} {[%emt 00:00:42]} Bd8 {[%clk 00:01:59]}
{[%emt 00:00:37]} 32. Bg3 {[%clk 00:10:41]} {[%emt 00:01:50]} Bb6+ {[%clk
00:02:18]} {[%emt 00:00:11]} 33. Bf2 {[%clk 00:11:06]} {[%emt 00:00:05]} Bxf2+
{[%clk 00:02:36]} {[%emt 00:00:13]} 34. Kxf2 {[%clk 00:11:30]} {[%emt
00:00:06]} Ra6 {[%clk 00:01:39]} {[%emt 00:01:27]} 35. Rxa6 {[%clk 00:10:05]}
{[%emt 00:01:55]} bxa6 {[%clk 00:02:08]} {[%emt 00:00:01]} 36. Nc3 {[%clk
00:10:21]} {[%emt 00:00:13]} Kg6 {[%clk 00:01:55]} {[%emt 00:00:43]} 37. Rb6
{[%clk 00:10:17]} {[%emt 00:00:35]} a5 {[%clk 00:02:15]} {[%emt 00:00:10]} 38.
Ra6 {[%clk 00:10:39]} {[%emt 00:00:08]} h5 {[%clk 00:01:49]} {[%emt 00:00:55]}
39. gxh5+ {[%clk 00:10:17]} {[%emt 00:00:52]} Kxh5 {[%clk 00:01:57]} {[%emt
00:00:21]} 40. Rxa5 {[%clk 00:10:27]} {[%emt 00:00:21]} Kg5 {[%clk 00:02:14]}
{[%emt 00:00:13]} 41. Ra6 {[%clk 00:09:30]} {[%emt 00:01:27]} Rd8 {[%clk
00:29:59]} {[%emt 00:02:45]} 42. Nb5 {[%clk 00:36:13]} {[%emt 00:03:47]} 1-0